bitfinex/quotes_BTCUSD_20250518
["timestamp","ask_amount","ask_price","bid_price","bid_amount"]
[1747611401344,0.06572997,105650.0,105640.0,0.22175417]
[1747611401534,0.25503427,105650.0,105640.0,0.21039555]
[1747611401662,0.25503427,105650.0,105640.0,0.2198613]
[1747611402067,0.07519518,105650.0,105640.0,0.23408018]
[1747611402313,0.0231,105650.0,105640.0,0.58354566]
[1747611402529,0.04202979,105650.0,105640.0,0.69539591]
[1747611402736,0.05149491,105650.0,105640.0,0.69739591]
[1747611402946,0.05149491,105650.0,105640.0,0.69939591]
[1747611403357,0.05149491,105650.0,105640.0,0.70986947]
[1747611403778,0.2734637,105650.0,105640.0,0.69093824]
[1747611404198,0.2674637,105650.0,105640.0,0.69093824]
[1747611404818,0.25799921,105650.0,105640.0,0.69093824]
[1747611405035,0.25799921,105650.0,105640.0,0.23195382]
[1747611405036,0.23906942,105650.0,105640.0,0.23195382]
[1747611405260,0.23906942,105650.0,105640.0,0.44453382]
[1747611405483,0.23906942,105650.0,105640.0,0.43031494]
[1747611405703,0.23906942,105650.0,105640.0,0.42831494]
[1747611406118,0.23906942,105650.0,105640.0,0.42731494]
[1747611406360,0.24006942,105650.0,105640.0,0.42731494]
[1747611406572,0.24006942,105650.0,105640.0,0.42631494]
[1747611406831,0.24106942,105650.0,105640.0,0.41584138]
[1747611408102,0.24106942,105650.0,105640.0,0.00214138]
[1747611411518,0.33837882,105650.0,105640.0,0.01673645]
[1747611411727,0.33837882,105650.0,105640.0,0.00214138]
[1747611412943,0.55326522,105650.0,105640.0,0.00214138]
[1747611413409,0.33837882,105650.0,105640.0,0.00214138]
[1747611414518,0.24106942,105650.0,105640.0,0.00214138]
[1747611415621,0.24106942,105650.0,105640.0,0.00030138]
[1747611419908,0.31847255,105650.0,105640.0,0.00030138]
[1747611420198,0.68144424,105650.0,105640.0,0.00030138]
[1747611420400,0.63066835,105650.0,105640.0,0.00030138]
[1747611420567,0.75578195,105650.0,105640.0,0.00030138]
[1747611420748,0.97066835,105650.0,105640.0,0.00030138]
[1747611422704,0.89326522,105650.0,105640.0,0.00030138]
[1747611424476,0.67837882,105650.0,105640.0,0.00030138]
[1747611424834,0.89326522,105650.0,105640.0,0.00030138]
[1747611425477,0.67837882,105650.0,105640.0,0.00030138]
[1747611425678,0.89326522,105650.0,105640.0,0.00030138]
[1747611426135,0.67837882,105650.0,105640.0,0.00030138]
[1747611426361,0.33837882,105650.0,105640.0,0.00030138]
[1747611426696,0.24095034,105650.0,105640.0,0.00030138]
[1747611427751,0.55314614,105650.0,105640.0,0.00030138]
[1747611427961,0.33825974,105650.0,105640.0,0.00030138]
[1747611432736,0.33811464,105650.0,105640.0,0.00030138]
[1747611433801,1.04768512,105650.0,105640.0,0.00030138]
[1747611433989,0.99494502,105650.0,105640.0,0.00030138]
[1747611434149,0.91754189,105650.0,105640.0,0.00030138]
[1747611434562,0.91654189,105650.0,105640.0,0.00030138]
[1747611434740,0.89200104,105650.0,105640.0,0.00030138]
[1747611434936,0.34111464,105650.0,105640.0,0.00030138]
[1747611435145,0.30107882,105650.0,105640.0,0.00030138]
[1747611435520,0.20376942,105650.0,105640.0,0.00030138]
[1747611435676,0.20276942,105650.0,105640.0,0.00030138]
[1747611435880,0.22566942,105650.0,105640.0,0.00030138]
[1747611436257,0.20676942,105650.0,105640.0,0.00030138]
[1747611436874,0.19876942,105650.0,105640.0,0.00030138]
[1747611437305,0.22169948,105650.0,105640.0,0.24855555]
[1747611437562,0.21223463,105650.0,105640.0,0.04030138]
[1747611437776,0.21223463,105650.0,105640.0,0.00030138]
[1747611438153,0.21023463,105650.0,105640.0,0.00030138]
[1747611438833,0.20823463,105650.0,105640.0,0.00030138]
[1747611439032,0.20923463,105650.0,105640.0,0.00030138]
[1747611439217,0.23223463,105650.0,105640.0,0.00030138]
[1747611439444,0.25583463,105650.0,105640.0,0.00030138]
[1747611439576,0.20923463,105650.0,105640.0,0.00030138]
[1747611440745,0.25443463,105650.0,105640.0,0.00030138]
[1747611444121,0.35174403,105650.0,105640.0,0.00030138]
[1747611444321,0.56663043,105650.0,105640.0,0.00030138]
[1747611444743,0.35174403,105650.0,105640.0,0.00030138]
[1747611444951,0.56663043,105650.0,105640.0,0.00030138]
[1747611446377,0.35174403,105650.0,105640.0,0.00030138]
[1747611446577,0.56663043,105650.0,105640.0,0.00030138]
[1747611446824,0.35174403,105650.0,105640.0,0.00030138]
[1747611447031,0.25443463,105650.0,105640.0,0.00030138]
[1747611457536,0.35174403,105650.0,105640.0,0.00030138]
[1747611459006,0.56663043,105650.0,105640.0,0.00030138]
[1747611459220,0.69174403,105650.0,105640.0,0.00030138]
[1747611459438,0.35174403,105650.0,105640.0,0.00030138]
[1747611460421,0.20923463,105650.0,105640.0,0.00030138]
[1747611460598,0.19976951,105650.0,105640.0,0.00030138]
[1747611462380,0.19976951,105650.0,105640.0,0.23908962]
[1747611463213,0.19976951,105650.0,105640.0,0.04030138]
[1747611463426,0.19976951,105650.0,105640.0,0.04657888]
[1747611463573,0.19976951,105650.0,105640.0,0.05442624]
[1747611463787,0.19976951,105650.0,105640.0,0.24374846]
[1747611463987,0.19976951,105650.0,105640.0,0.05442624]
[1747611464427,0.19976951,105650.0,105640.0,0.06389226]
[1747611464830,0.19976951,105650.0,105640.0,0.26268041]
[1747611465048,0.19976951,105650.0,105640.0,0.05442624]
[1747611465364,0.19976951,105650.0,105640.0,0.25321457]
[1747611465591,0.19976951,105650.0,105640.0,0.26268041]
[1747611466101,0.19976951,105650.0,105640.0,0.26268059]
[1747611466543,0.19976951,105650.0,105640.0,0.27214652]
[1747611466788,0.01046521,105650.0,105640.0,0.24348059]
[1747611466997,0.03885868,105650.0,105640.0,0.71892122]
[1747611467835,0.0388594,105650.0,105640.0,0.70945574]
[1747611468012,0.21869921,105650.0,105640.0,0.70945574]
[1747611468703,0.20923445,105650.0,105640.0,0.70945574]
[1747611468918,0.20823445,105650.0,105640.0,0.45273564]
[1747611469153,0.20823445,105650.0,105640.0,0.01542624]
[1747611469154,0.2331043,105650.0,105640.0,0.01542624]
[1747611469393,0.5453001,105650.0,105640.0,0.01642624]
[1747611469847,0.3304137,105650.0,105640.0,0.00857888]
[1747611470958,0.2331043,105650.0,105640.0,0.00230138]
[1747611471178,0.19876933,105650.0,105640.0,0.21055555]
[1747611471391,0.19876933,105650.0,105640.0,0.20108971]
[1747611471595,0.19876933,105650.0,105640.0,0.21055573]
[1747611471803,0.20823409,105650.0,105640.0,0.60002148]
[1747611472026,0.20823427,105650.0,105640.0,0.80670166]
[1747611472448,0.20823427,105650.0,105640.0,0.81454902]
[1747611472656,0.2176993,105650.0,105640.0,0.82401477]
[1747611472888,0.2176993,105650.0,105640.0,0.82401432]
[1747611473431,0.2176993,105650.0,105640.0,0.83028621]
[1747611474033,0.2176993,105650.0,105640.0,0.82082055]
[1747611474243,0.20823454,105650.0,105640.0,0.78082064]
[1747611475719,0.19876951,105650.0,105640.0,0.78082064]
[1747611476883,0.1893043,105650.0,105640.0,0.75242285]
[1747611477098,0.1893043,105650.0,105640.0,0.76188896]
[1747611477924,0.1893043,105650.0,105640.0,0.7713548]
[1747611478153,0.1893043,105650.0,105640.0,0.77135498]
[1747611478697,0.1893043,105650.0,105640.0,0.56126063]
[1747611479300,0.1893043,105650.0,105640.0,0.35642063]
[1747611479671,0.1833043,105650.0,105640.0,0.35642063]
[1747611481431,0.1833043,105650.0,105640.0,0.36588674]
[1747611481642,0.1833043,105650.0,105640.0,0.55520896]
[1747611481878,0.18928639,105660.0,105650.0,0.19876951]
[1747611482081,0.19875044,105660.0,105650.0,0.20823463]
[1747611482291,0.22714168,105660.0,105650.0,0.96749948]
[1747611482521,0.20821457,105660.0,105650.0,0.7498]
[1747611482729,0.19876933,105650.0,105640.0,0.11373003]
[1747611482945,0.24496933,105650.0,105640.0,0.34130138]
[1747611483182,0.24496933,105650.0,105640.0,0.00042138]
[1747611483853,0.20825354,105640.0,105630.0,0.62925899]
[1747611484063,0.20825354,105640.0,105630.0,1.06656839]
[1747611484291,0.0094653,105640.0,105630.0,1.07575477]
[1747611484571,0.00951168,105650.0,105640.0,0.61226032]
[1747611484802,4.71e-05,105650.0,105640.0,0.70956972]
[1747611485238,0.00951159,105650.0,105640.0,0.70956972]
[1747611485459,0.01897626,105650.0,105640.0,0.70956972]
[1747611485691,0.00951159,105650.0,105640.0,0.70956972]
[1747611485916,0.01897626,105650.0,105640.0,0.71056972]
[1747611486131,0.00951159,105650.0,105640.0,0.71156972]
[1747611486339,4.71e-05,105650.0,105640.0,0.71156972]
[1747611486798,4.71e-05,105650.0,105640.0,0.71784174]
[1747611487221,0.2101966,105670.0,105650.0,0.26297458]
[1747611487429,0.2101966,105670.0,105660.0,0.64552389]
[1747611487430,0.02097277,105670.0,105660.0,0.64552389]
[1747611487636,0.03043601,105670.0,105660.0,0.65498758]
[1747611487844,0.03989934,105670.0,105660.0,0.65498758]
[1747611488055,0.04936276,105670.0,105660.0,0.6612596]
[1747611488485,0.03990006,105670.0,105660.0,0.65179591]
[1747611488687,0.04190006,105670.0,105660.0,0.66125978]
[1747611488964,0.04290006,105670.0,105660.0,0.66125978]
[1747611489162,0.04290006,105670.0,105660.0,0.66225978]
[1747611489599,0.22270556,105670.0,105660.0,0.44458142]
[1747611489828,0.20377899,105670.0,105660.0,0.35510606]
[1747611490024,0.32398212,105670.0,105660.0,0.01510606]
[1747611490625,0.32398212,105670.0,105660.0,0.01610606]
[1747611493351,0.24657899,105670.0,105660.0,0.01610606]
[1747611493560,0.24657899,105670.0,105660.0,0.00827202]
[1747611493766,0.24757899,105670.0,105660.0,0.00827202]
[1747611494998,0.24157899,105670.0,105660.0,0.00827202]
[1747611496256,0.24157899,105670.0,105660.0,0.00727202]
[1747611496466,0.24257899,105670.0,105660.0,0.00727202]
[1747611496890,0.24057899,105670.0,105660.0,0.00627202]
[1747611497744,0.24157899,105670.0,105660.0,0.00627202]
[1747611499727,0.21967899,105670.0,105660.0,0.19555841]
[1747611500077,0.19777899,105670.0,105660.0,0.21448677]
[1747611500274,0.19777899,105670.0,105660.0,0.00627202]
[1747611500485,0.01246315,105670.0,105660.0,0.64233203]
[1747611500685,0.03138927,105670.0,105660.0,0.89594355]
[1747611501101,0.03038927,105670.0,105660.0,0.89594355]
[1747611501328,0.01146261,105670.0,105660.0,0.89594355]
[1747611501520,0.02092549,105670.0,105660.0,0.89594355]
[1747611501746,0.001,105670.0,105660.0,1.1367044]
[1747611502488,0.001,105670.0,105660.0,1.5514044]
[1747611502898,0.03284848,105680.0,105670.0,0.21765765]
[1747611503101,0.03331957,105680.0,105670.0,0.31496705]
[1747611503331,0.001,105700.0,105690.0,0.25781647]
[1747611503563,0.03538856,105730.0,105720.0,0.55755472]
[1747611503802,0.0448458,105730.0,105720.0,0.62903472]
[1747611504006,0.07330795,105730.0,105720.0,0.62903472]
[1747611504221,0.06385008,105730.0,105720.0,0.65741172]
[1747611504437,0.03991939,105730.0,105720.0,0.65741172]
[1747611504645,0.02100383,105730.0,105720.0,0.65741172]
[1747611504859,0.00208917,105730.0,105720.0,0.78978412]
[1747611505079,0.00308917,105730.0,105720.0,0.78978412]
[1747611505713,0.00408917,105730.0,105720.0,0.8020842]
[1747611505923,0.00508917,105730.0,105720.0,0.8020842]
[1747611506355,0.00408917,105730.0,105720.0,0.8213842]
[1747611506778,0.00308917,105730.0,105720.0,0.8311961]
[1747611507009,0.00308917,105730.0,105720.0,0.8520961]
[1747611507262,0.00308917,105730.0,105720.0,0.8540961]
[1747611507522,0.03338856,105740.0,105720.0,1.17517866]
[1747611507746,0.03343562,105740.0,105730.0,0.65673462]
[1747611507980,0.03343562,105740.0,105730.0,0.67574354]
[1747611508199,0.03343562,105740.0,105730.0,0.68201556]
[1747611508476,4.706e-05,105740.0,105730.0,0.70131556]
[1747611509563,4.706e-05,105740.0,105730.0,0.70912746]
[1747611510279,0.00104706,105740.0,105730.0,1.12382746]
[1747611510482,0.02641272,105760.0,105750.0,0.21749326]
[1747611510686,0.02641272,105760.0,105750.0,0.63017326]
[1747611510853,0.01695735,105760.0,105750.0,0.74321031]
[1747611511529,0.02641272,105760.0,105750.0,0.73375468]
[1747611511913,0.02941272,105760.0,105750.0,0.73375468]
[1747611512290,0.20801797,105760.0,105750.0,0.51626142]
[1747611512509,0.20801797,105760.0,105750.0,0.72429869]
[1747611512722,0.20801797,105760.0,105750.0,0.71484279]
[1747611513051,0.20801797,105760.0,105750.0,0.7242986]
[1747611513282,0.21101797,105760.0,105750.0,0.10358142]
[1747611513491,0.24396278,105760.0,105750.0,0.00627202]
[1747611513893,0.24396278,105760.0,105730.0,0.4498829]
[1747611513894,0.25475687,105740.0,105730.0,1.2058029]
[1747611514105,0.25475687,105740.0,105730.0,1.3031123]
[1747611514288,0.25475687,105740.0,105730.0,1.2747413]
[1747611514488,0.25475687,105740.0,105730.0,0.0078119]
[1747611515836,0.24531894,105730.0,105720.0,0.01430008]
[1747611516103,0.24531894,105730.0,105720.0,0.01434714]
[1747611517166,0.24531894,105730.0,105720.0,0.00204706]
[1747611517996,0.34362834,105730.0,105720.0,0.00204706]
[1747611518214,0.68362834,105730.0,105720.0,0.00204706]
[1747611519108,0.89951474,105730.0,105720.0,0.00204706]
[1747611519318,0.01892371,105680.0,105670.0,0.71563338]
[1747611519531,0.01892209,105690.0,105680.0,0.21772623]
[1747611519746,0.00946091,105690.0,105680.0,0.39243876]
[1747611520001,0.0255,105710.0,105700.0,0.21759614]
[1747611520205,0.04441941,105710.0,105700.0,0.20813594]
[1747611520412,0.03037853,105710.0,105700.0,0.32436582]
[1747611520621,0.03037853,105710.0,105700.0,0.53224582]
[1747611520838,0.0303779,105710.0,105700.0,0.53224582]
[1747611521328,0.0428372,105710.0,105700.0,1.09382667]
[1747611521537,0.03337754,105710.0,105700.0,1.09382667]
[1747611521760,0.005,105710.0,105700.0,1.09382667]
[1747611522212,0.005,105710.0,105700.0,1.1000424]
[1747611522433,0.006,105710.0,105700.0,1.1000424]
[1747611522686,0.009,105710.0,105700.0,1.1000424]
[1747611522914,0.006,105710.0,105700.0,1.1000424]
[1747611523114,0.006,105710.0,105700.0,1.1010424]
[1747611523319,0.02837532,105720.0,105710.0,0.55757529]
[1747611523532,0.03783408,105720.0,105710.0,0.55757529]
[1747611523959,0.01891673,105720.0,105710.0,0.55757529]
[1747611524113,0.0283754,105720.0,105710.0,0.55757529]
[1747611524524,0.01891673,105720.0,105710.0,0.55757529]
[1747611524744,0.25637672,105730.0,105720.0,0.19863772]
[1747611524971,0.0094585,105720.0,105710.0,0.67664055]
[1747611525139,0.01891664,105720.0,105710.0,1.09034055]
[1747611525658,0.24691903,105730.0,105710.0,1.09034055]
[1747611525893,0.25737672,105730.0,105720.0,0.2080964]
[1747611526214,0.0493,105730.0,105720.0,0.22377045]
[1747611526452,0.01245724,105730.0,105720.0,0.6756207]
[1747611526676,0.01245751,105730.0,105720.0,0.6746207]
[1747611527580,0.2205336,105730.0,105720.0,0.45806598]
[1747611527807,0.2110769,105730.0,105720.0,0.6567037]
[1747611528022,0.02191529,105730.0,105720.0,0.67562061]
[1747611528236,0.01245724,105730.0,105720.0,1.08970061]
[1747611528467,0.003,105730.0,105720.0,1.08970061]
[1747611528678,0.003,105730.0,105720.0,0.72202061]
[1747611528946,0.003,105730.0,105720.0,1.13634061]
[1747611529388,0.003,105730.0,105720.0,1.15924061]
[1747611529607,0.002,105750.0,105740.0,0.55651357]
[1747611529825,0.002,105750.0,105740.0,0.66836382]
[1747611530494,0.002,105750.0,105740.0,0.69126382]
[1747611530922,0.002,105750.0,105740.0,0.69947955]
[1747611531134,0.02436207,105770.0,105760.0,0.55747244]
[1747611531363,0.02436207,105770.0,105760.0,0.86266184]
[1747611531586,0.04327074,105770.0,105760.0,0.86266193]
[1747611532304,0.04331781,105770.0,105760.0,0.86266193]
[1747611532719,0.22695358,105770.0,105760.0,0.86763074]
[1747611532935,0.22695358,105770.0,105760.0,0.8833013]
[1747611533140,0.22795358,105770.0,105760.0,0.8833013]
[1747611533775,0.22795358,105770.0,105760.0,0.86439146]
[1747611534003,0.26519956,105770.0,105760.0,0.77433937]
[1747611534228,0.25574536,105770.0,105760.0,0.43433937]
[1747611535726,0.25574536,105770.0,105760.0,0.44707477]
[1747611536625,0.25574536,105770.0,105760.0,0.43433937]
[1747611537003,0.35305476,105770.0,105760.0,0.41991573]
[1747611537787,0.35305476,105770.0,105760.0,0.4137]
[1747611538004,0.25475687,105740.0,105730.0,1.2355]
[1747611538201,0.25475687,105740.0,105730.0,0.83492976]
[1747611538510,0.25475687,105740.0,105730.0,1.24824976]
[1747611538727,0.25475687,105740.0,105730.0,1.23538]
[1747611538950,0.25475687,105740.0,105730.0,0.82168]
[1747611539359,0.25475687,105740.0,105730.0,0.82792238]
[1747611539564,0.25475687,105740.0,105730.0,0.21404238]
[1747611539780,0.25475687,105740.0,105730.0,0.21804238]
[1747611539987,0.25475687,105740.0,105730.0,0.01024238]
[1747611540200,0.25475687,105740.0,105730.0,0.01424238]
[1747611540408,0.25475687,105740.0,105730.0,0.00624238]
[1747611541227,0.35206627,105740.0,105730.0,0.00624238]
[1747611542229,0.24451894,105730.0,105720.0,0.01613962]
[1747611543506,0.24456598,105730.0,105720.0,0.01613962]
[1747611543708,0.24456598,105730.0,105720.0,0.02238529]
[1747611544510,0.24456598,105730.0,105720.0,0.00824567]
[1747611545981,0.34187538,105730.0,105720.0,0.00824567]
[1747611546398,0.8964454,105730.0,105720.0,0.00824567]
[1747611546609,0.2541159,105710.0,105700.0,0.002]
[1747611546861,0.3514253,105710.0,105700.0,0.002]
[1747611547075,0.56599532,105710.0,105700.0,0.002]
[1747611547278,0.3514253,105710.0,105700.0,0.002]
[1747611548035,0.90599532,105710.0,105700.0,0.002]
[1747611549370,0.90799532,105710.0,105700.0,0.002]
[1747611549569,0.90899532,105710.0,105700.0,0.002]
[1747611549779,0.25585529,105690.0,105680.0,0.002]
[1747611549985,0.35316469,105690.0,105680.0,0.002]
[1747611550425,0.25585529,105690.0,105680.0,0.002]
[1747611550637,0.00946073,105700.0,105690.0,0.01892254]
[1747611550839,0.25435669,105710.0,105680.0,0.82267541]
[1747611551042,0.25435669,105710.0,105690.0,0.22707783]
[1747611551043,0.01892083,105700.0,105690.0,0.22707783]
[1747611551192,0.20813576,105700.0,105690.0,0.4373094]
[1747611551788,0.20813576,105700.0,105690.0,0.63600351]
[1747611551937,0.20813576,105700.0,105690.0,0.64546487]
[1747611552145,0.20813576,105700.0,105690.0,0.65492614]
[1747611552748,0.21013576,105700.0,105690.0,0.65492614]
[1747611553396,0.21213576,105700.0,105690.0,0.66438732]
[1747611553595,0.19421475,105700.0,105690.0,0.4373094]
[1747611553833,0.19421475,105700.0,105690.0,0.6360036]
[1747611554448,0.19421475,105700.0,105690.0,0.65492623]
[1747611554867,0.19421475,105700.0,105690.0,0.4373094]
[1747611555043,0.19421475,105700.0,105680.0,0.54664917]
[1747611555044,0.19869429,105690.0,105680.0,0.54664917]
[1747611555282,0.19869429,105690.0,105680.0,1.06631607]
[1747611555497,0.01892245,105690.0,105680.0,1.07577806]
[1747611555712,0.0283839,105690.0,105680.0,1.08523996]
[1747611555889,0.005,105700.0,105690.0,0.21761647]
[1747611556089,0.01246055,105700.0,105690.0,0.30546487]
[1747611556312,0.22805696,105700.0,105690.0,0.2960036]
[1747611556456,0.01992031,105700.0,105690.0,0.31492587]
[1747611556647,0.02938086,105700.0,105690.0,0.65492587]
[1747611556849,0.01992031,105700.0,105690.0,0.65492587]
[1747611557064,0.03138086,105700.0,105690.0,0.65492587]
[1747611557265,0.03138077,105700.0,105690.0,0.65492587]
[1747611557523,0.04084132,105700.0,105690.0,0.65492587]
[1747611557744,0.03138077,105700.0,105690.0,0.66946672]
[1747611557946,0.03338077,105700.0,105690.0,0.66946672]
[1747611558659,0.21313576,105700.0,105690.0,0.85602445]
[1747611558866,0.2036753,105700.0,105690.0,0.6427494]
[1747611559072,0.2036753,105700.0,105690.0,0.84144351]
[1747611559839,0.2036753,105700.0,105690.0,0.85090487]
[1747611560036,0.02392084,105700.0,105690.0,0.86036614]
[1747611560271,0.02392084,105700.0,105690.0,0.86982714]
[1747611560423,0.02392084,105700.0,105690.0,1.11364799]
[1747611560424,0.005,105700.0,105690.0,1.11364799]
[1747611561067,0.003,105700.0,105690.0,1.52734799]
[1747611561470,0.001,105700.0,105690.0,1.59914799]
[1747611562104,0.001,105700.0,105690.0,1.59614799]
[1747611562327,0.001,105700.0,105690.0,1.60214799]
[1747611562867,0.001,105700.0,105690.0,2.00758799]
[1747611563064,0.001,105700.0,105690.0,2.01158799]
[1747611563835,0.00545912,105710.0,105700.0,0.59603672]
[1747611564046,0.23647215,105720.0,105710.0,0.21757556]
[1747611564258,0.02837549,105720.0,105710.0,0.77163477]
[1747611564891,0.02091556,105730.0,105720.0,0.54809604]
[1747611565099,0.2289921,105730.0,105720.0,0.54809622]
[1747611565337,0.24791912,105730.0,105720.0,0.34]
[1747611566000,0.2459379,105720.0,105710.0,0.2056]
[1747611566228,0.2459379,105720.0,105710.0,0.00108917]
[1747611567574,0.2459379,105720.0,105710.0,8.917e-05]
[1747611568033,0.3432473,105720.0,105710.0,0.00108917]
[1747611568708,0.3432473,105720.0,105710.0,0.00208917]
[1747611569212,0.3432473,105720.0,105710.0,0.00108917]
[1747611569442,0.3432473,105720.0,105710.0,8.917e-05]
[1747611574482,0.99327658,105720.0,105710.0,8.917e-05]
[1747611574691,1.13711259,105720.0,105710.0,8.917e-05]
[1747611574895,0.92245037,105720.0,105710.0,8.917e-05]
[1747611575853,0.92945037,105720.0,105710.0,8.917e-05]
[1747611576077,1.14411259,105720.0,105710.0,8.917e-05]
[1747611577196,0.25465529,105690.0,105680.0,0.002]
[1747611577422,0.56662691,105690.0,105680.0,0.002]
[1747611578293,0.90662691,105690.0,105680.0,0.002]
[1747611578470,0.90662691,105690.0,105680.0,0.004]
[1747611579060,0.90662691,105690.0,105680.0,0.003]
[1747611579463,0.90962691,105690.0,105680.0,0.003]
[1747611579897,1.11750691,105690.0,105680.0,0.002]
[1747611580245,1.11950691,105690.0,105680.0,0.002]
[1747611581134,1.35870998,105690.0,105680.0,0.002]
[1747611581362,1.14404776,105690.0,105680.0,0.002]
[1747611582156,0.90484469,105690.0,105680.0,0.002]
[1747611582359,1.11950691,105690.0,105680.0,0.002]
[1747611582562,0.35696469,105690.0,105680.0,0.002]
[1747611588353,0.33436469,105690.0,105680.0,0.002]
[1747611588605,0.35626469,105690.0,105680.0,0.002]
[1747611591754,0.21315529,105690.0,105680.0,0.002]
[1747611592810,0.21315529,105690.0,105680.0,0.19125056]
[1747611593020,0.21315529,105690.0,105680.0,0.0239]
[1747611593021,0.20369411,105690.0,105680.0,0.0239]
[1747611593848,0.20169411,105690.0,105680.0,0.0239]
[1747611594258,0.19869411,105690.0,105680.0,0.0249]
[1747611594463,0.19869411,105690.0,105680.0,0.003]
[1747611595121,0.24489411,105690.0,105680.0,0.003]
[1747611595352,0.34220351,105690.0,105680.0,0.003]
[1747611596999,0.34220351,105690.0,105680.0,0.002]
[1747611597455,0.34320351,105690.0,105680.0,0.002]
[1747611597622,0.34420351,105690.0,105680.0,0.002]
[1747611600978,0.68420351,105690.0,105680.0,0.002]
[1747611601787,0.78380351,105690.0,105680.0,0.002]
[1747611601960,0.68420351,105690.0,105680.0,0.002]
[1747611602788,0.34420351,105690.0,105680.0,0.002]
[1747611603207,0.22299411,105690.0,105680.0,0.002]
[1747611603684,0.24619411,105690.0,105680.0,0.002]
[1747611604291,0.34350351,105690.0,105680.0,0.002]
[1747611605753,0.89835801,105690.0,105680.0,0.002]
[1747611607694,0.89935801,105690.0,105680.0,0.002]
[1747611611324,0.68450351,105690.0,105680.0,0.002]
[1747611611726,0.89935801,105690.0,105680.0,0.002]
[1747611611954,0.89877298,105690.0,105680.0,0.002]
[1747611612601,0.68391848,105690.0,105680.0,0.002]
[1747611612803,0.89279848,105690.0,105680.0,0.002]
[1747611612970,0.68391848,105690.0,105680.0,0.002]
[1747611613171,0.89291848,105690.0,105680.0,0.002]
[1747611613552,0.32071848,105690.0,105680.0,0.002]
[1747611613900,0.29841848,105690.0,105680.0,0.002]
[1747611614919,0.20110908,105690.0,105680.0,0.002]
[1747611616635,0.20110908,105690.0,105680.0,0.0261]
[1747611617057,0.20110908,105690.0,105680.0,0.0471]
[1747611617058,0.20092382,105690.0,105680.0,0.0471]
[1747611618071,0.20081875,105690.0,105680.0,0.0471]
[1747611618426,0.20081875,105690.0,105680.0,0.002]
[1747611618876,0.24761875,105690.0,105680.0,0.002]
[1747611620116,0.34492815,105690.0,105680.0,0.002]
[1747611622347,0.29812815,105690.0,105680.0,0.002]
[1747611622574,0.20081875,105690.0,105680.0,0.002]
[1747611622961,0.20081875,105690.0,105680.0,0.025]
[1747611625899,0.20081875,105690.0,105680.0,0.03282856]
[1747611626354,0.20081875,105690.0,105680.0,0.05382856]
[1747611626574,0.20081875,105690.0,105680.0,0.03282856]
[1747611629802,0.19911673,105690.0,105680.0,0.03282856]
[1747611630389,0.19911673,105690.0,105680.0,0.24307912]
[1747611630591,0.19911673,105690.0,105680.0,0.25254155]
[1747611631224,0.19911673,105690.0,105680.0,0.26200389]
[1747611631663,0.19911673,105690.0,105680.0,0.05382856]
[1747611632162,0.19911673,105690.0,105680.0,0.06329108]
[1747611632368,0.19911673,105690.0,105680.0,0.26200389]
[1747611632567,0.19911673,105690.0,105680.0,0.26200407]
[1747611633010,0.20004673,105690.0,105680.0,0.06329108]
[1747611633192,0.19316266,105690.0,105680.0,0.06329108]
[1747611633508,0.19316266,105690.0,105680.0,0.26200407]
[1747611633726,0.19297432,105690.0,105680.0,0.26200407]
[1747611633976,0.19297432,105690.0,105680.0,0.06329108]
[1747611634171,0.19297432,105690.0,105680.0,0.03282856]
[1747611634391,0.19297432,105690.0,105680.0,0.00982856]
[1747611635063,0.23927432,105690.0,105680.0,0.00982856]
[1747611635684,0.23927432,105690.0,105680.0,0.002]
[1747611639510,0.55237822,105690.0,105680.0,0.002]
[1747611639690,0.33752372,105690.0,105680.0,0.002]
[1747611640841,0.24021432,105690.0,105680.0,0.002]
[1747611641254,0.19391432,105690.0,105680.0,0.002]
[1747611644314,0.19391432,105690.0,105680.0,0.00982856]
[1747611648693,0.19486432,105690.0,105680.0,0.00982856]
[1747611656451,0.19582432,105690.0,105680.0,0.00982856]
[1747611657020,0.24392432,105690.0,105680.0,0.00982856]
[1747611659311,0.34123372,105690.0,105680.0,0.00982856]
[1747611659513,0.34123372,105690.0,105680.0,0.002]
[1747611660783,0.55608822,105690.0,105680.0,0.002]
[1747611660996,0.89608822,105690.0,105680.0,0.002]
[1747611661202,1.09824822,105690.0,105680.0,0.002]
[1747611661629,0.34123372,105690.0,105680.0,0.002]
[1747611661839,0.24392432,105690.0,105680.0,0.002]
[1747611662052,0.21992432,105690.0,105680.0,0.002]
[1747611662265,0.19582432,105690.0,105680.0,0.002]
[1747611663525,0.19582432,105690.0,105680.0,0.00982856]
[1747611665470,0.19679432,105690.0,105680.0,0.00982856]
[1747611666268,0.21590565,105690.0,105680.0,0.20854164]
[1747611666447,0.21590565,105690.0,105680.0,0.01929108]
[1747611666667,0.2064442,105690.0,105680.0,0.00982856]
[1747611666917,0.2064442,105690.0,105680.0,0.01929108]
[1747611667104,0.2054442,105690.0,105680.0,0.39135342]
[1747611667353,0.2054442,105690.0,105680.0,0.35929108]
[1747611667490,0.2044442,105690.0,105680.0,0.36029108]
[1747611667708,0.2044442,105690.0,105680.0,0.36975351]
[1747611667939,0.2044442,105690.0,105680.0,0.55900407]
[1747611668179,0.2044442,105690.0,105680.0,0.56846641]
[1747611669230,0.2044442,105690.0,105680.0,0.55900407]
[1747611669358,0.19498266,105690.0,105680.0,0.55117551]
[1747611670071,0.23785501,105690.0,105680.0,0.003]
[1747611671108,0.23883501,105690.0,105680.0,0.003]
[1747611671925,0.33614441,105690.0,105680.0,0.003]
[1747611673385,0.23763501,105690.0,105680.0,0.003]
[1747611675259,0.21633501,105690.0,105680.0,0.003]
[1747611675470,0.19553501,105690.0,105680.0,0.003]
[1747611675898,0.19553501,105690.0,105680.0,0.01087661]
[1747611677198,0.19652501,105690.0,105680.0,0.02033913]
[1747611677411,0.215448,105690.0,105680.0,0.54958969]
[1747611677625,0.02621534,105690.0,105680.0,0.77051429]
[1747611677847,0.215448,105690.0,105680.0,0.76105212]
[1747611678058,0.215448,105690.0,105680.0,0.77051446]
[1747611678505,0.215448,105690.0,105680.0,0.76263785]
[1747611680332,0.02621471,105690.0,105680.0,0.80456192]
[1747611680545,0.04513698,105690.0,105680.0,0.80456192]
[1747611680698,0.05459861,105690.0,105680.0,0.80456192]
[1747611680893,0.04513779,105690.0,105680.0,0.8045621]
[1747611681097,0.23437045,105690.0,105680.0,0.8045621]
[1747611681636,0.00729235,105690.0,105680.0,0.93391173]
[1747611682068,0.02837835,105710.0,105700.0,0.57113576]
[1747611682279,0.2175752,105710.0,105700.0,0.78255596]
[1747611682498,0.02837835,105710.0,105700.0,0.79201607]
[1747611682734,0.0378381,105710.0,105700.0,0.79201607]
[1747611682962,0.22703558,105710.0,105700.0,0.78255596]
[1747611683216,0.00945903,105710.0,105700.0,0.87986448]
[1747611683440,0.18932007,105720.0,105710.0,0.21757529]